bitfinex-derivatives/quotes_BTCF0:USTF0_20250330
["timestamp","ask_amount","ask_price","bid_price","bid_amount"]
[1743372150424,0.31452864,81991.0,81980.0,0.0834]
[1743372150425,0.1220136,81981.0,81980.0,0.0834]
[1743372150626,0.1220151,81980.0,81979.0,3e-08]
[1743372150833,0.17278808,81980.0,81979.0,3e-08]
[1743372151034,0.2947683,81980.0,81979.0,3e-08]
[1743372151228,0.8830302,81980.0,81979.0,3e-08]
[1743372151433,0.1220389,81964.0,81963.0,5e-08]
[1743372151635,0.65754286,81964.0,81963.0,5e-08]
[1743372151833,0.68410476,81964.0,81963.0,5e-08]
[1743372152038,0.0610155,81970.0,81963.0,0.72648005]
[1743372152334,0.1220374,81965.0,81964.0,0.36568]
[1743372152541,0.1220389,81964.0,81963.0,0.36080005]
[1743372152838,0.1241989,81964.0,81963.0,0.36144005]
[1743372153037,0.1241989,81964.0,81963.0,0.72712005]
[1743372153230,0.00920343,81977.0,81966.0,0.1220349]
[1743372153231,0.003,81970.0,81966.0,0.1220349]
[1743372153432,0.0610147,81971.0,81967.0,0.3608]
[1743372153633,0.1220329,81968.0,81967.0,0.36144]
[1743372153831,0.1228329,81968.0,81967.0,0.36144]
[1743372154139,0.1228329,81968.0,81967.0,1e-07]
[1743372154330,0.1220389,81964.0,81963.0,5e-08]
[1743372154532,0.1230389,81964.0,81963.0,5e-08]
[1743372154735,0.1230389,81964.0,81934.0,0.34683316]
[1743372154736,0.1220821,81935.0,81934.0,0.34683316]
[1743372155037,0.1231621,81935.0,81934.0,0.34747316]
[1743372155238,0.1231621,81935.0,81934.0,0.36632]
[1743372155545,0.1220821,81935.0,81934.0,0.36632]
[1743372155731,0.1230821,81935.0,81934.0,0.36632]
[1743372155933,0.001,81935.0,81934.0,0.36632]
[1743372156135,0.13304525,81935.0,81934.0,0.36632]
[1743372156327,0.1251621,81935.0,81934.0,0.14649711]
[1743372156529,0.1251621,81935.0,81934.0,0.23783711]
[1743372156828,0.0610214,81962.0,81937.0,0.0610395]
[1743372157030,0.1220583,81951.0,81950.0,0.11581167]
[1743372157231,0.1220487,81963.0,81950.0,0.5102]
[1743372157428,0.1220478,81958.0,81957.0,0.3608]
[1743372157631,0.00084,81958.0,81957.0,0.36144]
[1743372157831,0.24660011,81986.0,81957.0,0.50793711]
[1743372158047,0.1220463,81959.0,81958.0,0.14649711]
[1743372158344,0.35084297,81961.0,81950.0,0.26457167]
[1743372158643,0.1220568,81952.0,81951.0,0.29573711]
[1743372158937,0.1228568,81952.0,81951.0,0.14717711]
[1743372159333,0.1228568,81952.0,81951.0,0.04717711]
[1743372160336,0.1258568,81952.0,81951.0,0.00068]
[1743372160547,0.1220597,81950.0,81949.0,0.00018304]
[1743372160745,0.1228597,81950.0,81949.0,0.04732015]
[1743372160939,0.1228597,81950.0,81949.0,0.0008]
[1743372161141,0.0610321,81947.0,81944.0,0.149]
[1743372161341,0.1831057,81943.0,81942.0,0.1492]
[1743372161538,0.00104001,81943.0,81942.0,0.2719117]
[1743372161843,0.006,81952.0,81951.0,0.1220583]
[1743372162048,0.1260568,81952.0,81951.0,0.1226983]
[1743372162249,0.1260568,81952.0,81951.0,0.00064]
[1743372162449,0.1260568,81952.0,81951.0,0.08514]
[1743372162450,0.60489359,81952.0,81951.0,0.08514]
[1743372162747,0.1220612,81949.0,81948.0,0.1220617]
[1743372162948,0.3618,81952.0,81951.0,0.1220583]
[1743372163149,0.3618,81952.0,81933.0,0.00915578]
[1743372163150,0.1220821,81935.0,81933.0,0.00915578]
[1743372163451,0.1220836,81934.0,81933.0,0.13124008]
[1743372164044,0.1232436,81934.0,81933.0,0.13200008]
[1743372164250,0.1220836,81934.0,81933.0,0.13124008]
[1743372164442,0.0610408,81936.0,81935.0,0.1220821]
[1743372165148,0.1445392,81938.0,81935.0,0.1220821]
[1743372165149,0.14079111,81939.0,81937.0,0.1220791]
[1743372165347,0.14079111,81939.0,81938.0,0.1220776]
[1743372165656,0.14079111,81939.0,81933.0,0.00915578]
[1743372165853,0.14079111,81939.0,81934.0,0.1220836]
[1743372165854,0.1220827,81935.0,81934.0,0.1220836]
[1743372166248,0.1220851,81933.0,81932.0,0.061043]
[1743372166553,0.122088,81931.0,81930.0,0.04882]
[1743372167256,0.10563718,81936.0,81935.0,0.1220821]
[1743372167445,0.53678889,81946.0,81939.0,0.1220761]
[1743372167751,0.53678889,81946.0,81935.0,0.14984]
[1743372167947,0.1220799,81937.0,81935.0,0.14984]
[1743372168149,0.1220806,81936.0,81935.0,0.14984]
[1743372168344,0.3608,81939.0,81935.0,0.14984]
[1743372168552,0.3608,81939.0,81938.0,0.1220776]
[1743372168742,0.36196,81939.0,81938.0,0.00064]
[1743372168947,0.4840361,81939.0,81938.0,0.00064]
[1743372169455,0.36196,81939.0,81938.0,0.00064]
[1743372169646,0.36196,81939.0,81936.0,0.097]
[1743372169845,0.36196,81939.0,81936.0,0.2197206]
[1743372170057,0.122079,81938.0,81936.0,0.09764]
[1743372170250,0.1232383,81938.0,81936.0,0.09764]
[1743372170549,0.1232377,81938.0,81936.0,0.09764]
[1743372170755,0.1220791,81937.0,81936.0,0.09464]
[1743372170945,0.1232391,81937.0,81936.0,0.09464]
[1743372171145,0.1232391,81937.0,81936.0,0.094]
[1743372171447,0.122088,81931.0,81930.0,0.04882]
[1743372171645,0.122088,81931.0,81925.0,0.08544]
[1743372171646,0.1220925,81928.0,81925.0,0.08544]
[1743372171941,0.1221104,81916.0,81915.0,1e-08]
[1743372172245,0.1221104,81916.0,81899.0,0.0004884]
[1743372172246,0.1221343,81900.0,81899.0,0.0004884]
[1743372172452,0.84533431,81900.0,81899.0,0.0004884]
[1743372172753,0.96438897,81900.0,81899.0,0.0004884]
[1743372173150,0.96338897,81900.0,81899.0,0.0004884]
[1743372173355,0.96338897,81900.0,81876.0,0.0913]
[1743372173356,0.1221581,81884.0,81876.0,0.0913]
[1743372173551,0.48455811,81884.0,81866.0,0.1221835]
[1743372173751,0.63383811,81884.0,81866.0,0.1221835]
[1743372174048,0.84516283,81884.0,81866.0,0.1221841]
[1743372174248,0.84516283,81884.0,81866.0,0.0610922]
[1743372174443,0.84516283,81884.0,81869.0,0.12218]
[1743372174646,0.84516283,81884.0,81869.0,0.1221796]
[1743372174842,0.84516283,81884.0,81869.0,0.1221792]
[1743372175052,0.1221807,81872.0,81864.0,0.38431636]
[1743372175249,0.3608,81884.0,81883.0,0.1221596]
[1743372175446,0.36240001,81884.0,81883.0,0.1231596]
[1743372175954,0.48455811,81884.0,81883.0,0.1221596]
[1743372176144,0.1221611,81883.0,81882.0,0.1221606]
[1743372176347,0.00160001,81883.0,81882.0,0.1221611]
[1743372176546,0.00160001,81883.0,81877.0,0.0610843]
[1743372176858,0.00160001,81883.0,81882.0,0.1221611]
[1743372177460,0.1221671,81879.0,81878.0,0.2443311]
[1743372177754,0.3041611,81882.0,81881.0,0.1221626]
[1743372178060,0.30576111,81882.0,81881.0,0.1221626]
[1743372178447,0.30576111,81882.0,81868.0,0.1484]
[1743372178648,0.30576111,81882.0,81881.0,0.1221626]
[1743372179149,0.1221641,81880.0,81879.0,0.0610825]
[1743372179357,0.12376411,81880.0,81879.0,0.0610825]
[1743372180357,0.00160001,81880.0,81879.0,0.0610825]
[1743372181062,0.00260001,81880.0,81879.0,0.2092025]
[1743372181261,0.00260001,81880.0,81879.0,0.3592025]
[1743372181451,0.3608,81883.0,81881.0,0.1221626]
[1743372181648,0.36192001,81883.0,81882.0,0.1578611]
[1743372181861,0.36192001,81883.0,81882.0,0.1585411]
[1743372182349,0.36192001,81883.0,81882.0,0.1656411]
[1743372183748,0.36192001,81883.0,81882.0,0.1228411]
[1743372184157,0.48407961,81883.0,81882.0,0.00068]
[1743372184460,0.45182001,81883.0,81882.0,0.1228411]
[1743372184957,0.57397961,81883.0,81882.0,0.1228411]
[1743372185456,0.57397961,81883.0,81882.0,0.00068]
[1743372185656,0.57297961,81883.0,81882.0,0.00068]
[1743372185962,0.1221641,81880.0,81879.0,0.14812]
[1743372186162,0.12328411,81880.0,81879.0,0.14924]
[1743372186361,0.12328411,81880.0,81879.0,0.00112]
[1743372186564,0.12328441,81880.0,81879.0,0.1221656]
[1743372186761,0.12328441,81880.0,81879.0,0.1232856]
[1743372187063,0.17862001,81880.0,81879.0,0.1232856]
[1743372188066,0.39427394,81880.0,81879.0,0.1232856]
[1743372188459,0.39427394,81880.0,81877.0,0.1221671]
[1743372188460,0.39427394,81880.0,81869.0,0.14748]
[1743372188652,0.39427394,81880.0,81879.0,0.1221656]
[1743372189056,0.39227394,81880.0,81879.0,0.1228456]
[1743372190054,0.17862001,81880.0,81879.0,0.1228456]
[1743372190258,0.17862001,81880.0,81876.0,0.061085]
[1743372190259,0.17862001,81880.0,81876.0,0.02408511]
[1743372190567,0.17862001,81880.0,81879.0,0.1221656]
[1743372190870,0.17962001,81880.0,81879.0,0.1221656]
[1743372191565,0.17862001,81880.0,81879.0,0.1221656]
[1743372191868,0.17962001,81880.0,81879.0,0.1221656]
[1743372192367,0.18062001,81880.0,81879.0,0.1221656]
[1743372193670,0.17962001,81880.0,81879.0,0.1221656]
[1743372194464,0.17862001,81880.0,81879.0,0.1221656]
[1743372194666,0.17962001,81880.0,81879.0,0.1221656]
[1743372195170,0.18062001,81880.0,81879.0,0.1221656]
[1743372196863,0.18062001,81880.0,81874.0,0.1464]
[1743372196864,0.18062001,81880.0,81874.0,0.13411638]
[1743372197064,0.18062001,81880.0,81879.0,0.1221656]
[1743372198862,0.54142001,81880.0,81873.0,0.04885]
[1743372199060,0.54142001,81880.0,81857.0,0.4218991]
[1743372199061,0.1221723,81875.0,81870.0,0.03605829]
[1743372199262,0.00164,81875.0,81874.0,0.1221716]
[1743372199861,0.01110128,81875.0,81874.0,0.1221716]
[1743372200664,0.01110128,81875.0,81866.0,0.1221844]
[1743372200976,0.3588,81870.0,81868.0,0.1221805]
[1743372201274,0.3588,81870.0,81862.0,0.14592]
[1743372201275,0.122183,81868.0,81864.0,0.2076874]
[1743372201461,0.13064548,81867.0,81864.0,0.2076874]
[1743372201664,0.00985368,81869.0,81864.0,0.0855]
[1743372201978,0.00985368,81868.0,81857.0,0.3608]
[1743372202178,0.1832754,81867.0,81866.0,0.003]
[1743372202371,0.00985368,81868.0,81857.0,0.3608]
[1743372202372,0.1221924,81861.0,81857.0,0.3608]
[1743372202674,0.4829924,81861.0,81859.0,0.00713]
[1743372203078,0.49284608,81861.0,81859.0,0.00713]
[1743372205173,0.49284608,81861.0,81860.0,2.93153355]
[1743372205174,0.76500511,81861.0,81860.0,2.93153355]
[1743372205363,0.91216511,81861.0,81860.0,2.93153355]
[1743372205563,1.32386511,81861.0,81860.0,2.93153355]
[1743372206170,1.32386511,81861.0,81860.0,2.44188542]
[1743372207368,1.32702511,81861.0,81860.0,2.44188542]
[1743372207866,1.33002511,81861.0,81860.0,2.34812312]
[1743372208076,1.32902511,81861.0,81860.0,2.34812312]
[1743372208380,1.60188655,81861.0,81860.0,2.30966442]
[1743372208768,1.65188655,81861.0,81860.0,2.12926372]
[1743372208964,2.04522223,81861.0,81860.0,0.03778207]
[1743372209171,2.04522223,81861.0,81856.0,0.08551]
[1743372209172,0.1221984,81857.0,81856.0,0.05266327]
[1743372209378,0.1222059,81852.0,81851.0,0.00048869]
[1743372209570,0.49360168,81852.0,81851.0,0.00048869]
[1743372209875,0.76576071,81852.0,81851.0,9e-08]
[1743372210076,0.1222298,81836.0,81826.0,0.1222437]
[1743372210273,0.28754558,81836.0,81822.0,0.1222498]
[1743372210479,0.28754558,81836.0,81823.0,0.1222481]
[1743372210674,0.28754558,81836.0,81819.0,0.00048888]
[1743372210883,0.37754558,81836.0,81819.0,0.00048888]
[1743372211072,0.40381916,81836.0,81819.0,0.00048888]
[1743372211474,0.49801916,81836.0,81819.0,0.00048888]
[1743372212581,0.35075118,81836.0,81819.0,0.00048888]
[1743372212768,0.22852138,81836.0,81825.0,0.3608]
[1743372212968,0.21211358,81836.0,81835.0,0.27272009]
[1743372213168,0.01149368,81836.0,81835.0,0.27272009]
[1743372213373,0.00985368,81836.0,81835.0,0.27272009]
[1743372213676,0.1222298,81836.0,81835.0,0.00048879]
[1743372213877,0.0925,81843.0,81842.0,0.1222208]
[1743372214077,0.00116,81843.0,81842.0,0.4837008]
[1743372214270,0.2147078,81851.0,81843.0,0.1222193]
[1743372214470,0.1222109,81849.0,81843.0,0.1228593]
[1743372214674,0.0925,81851.0,81843.0,0.1413593]
[1743372214675,0.14253908,81847.0,81843.0,0.1413593]
[1743372214871,0.14253908,81847.0,81843.0,0.2913593]
[1743372215674,0.14253908,81847.0,81843.0,0.23016806]
[1743372215879,0.14253908,81847.0,81846.0,0.1222148]
[1743372216081,0.14385908,81847.0,81846.0,0.4836548]
[1743372216284,0.14385908,81847.0,81846.0,0.7824548]
[1743372216580,0.17817385,81852.0,81846.0,0.7824548]
[1743372216581,0.17817385,81852.0,81851.0,0.1222074]
[1743372216878,0.17953385,81852.0,81851.0,0.1228874]
[1743372217072,0.17953385,81852.0,81851.0,0.4836874]
[1743372218778,0.17953385,81852.0,81851.0,0.36148]
[1743372218978,0.18980922,81852.0,81851.0,0.4836874]
[1743372219183,0.18980922,81852.0,81851.0,0.36148]
[1743372219577,0.2003347,81852.0,81851.0,0.36148]
[1743372219778,0.2003347,81852.0,81851.0,0.4836874]
[1743372220683,0.18980922,81852.0,81851.0,0.4836874]
[1743372220886,0.13384127,81852.0,81851.0,0.36148]
[1743372221172,0.19212119,81852.0,81851.0,0.36148]
[1743372221381,0.15006995,81852.0,81851.0,0.36148]
[1743372221583,0.15006995,81852.0,81851.0,0.00068]
[1743372221789,0.1222079,81851.0,81845.0,0.1222153]
[1743372221979,0.02650405,81850.0,81845.0,0.00064]
[1743372222288,0.02082349,81849.0,81848.0,0.1222119]
[1743372222483,0.20694349,81849.0,81848.0,0.4836519]
[1743372223186,0.17817385,81870.0,81848.0,0.34123106]
[1743372223389,0.0969,81857.0,81856.0,0.1221999]
[1743372223586,0.0969,81857.0,81856.0,0.4836799]
[1743372223788,0.09782,81857.0,81856.0,0.4836799]
[1743372223989,0.0969,81857.0,81856.0,0.4836799]
[1743372225380,0.003,81857.0,81856.0,0.4836799]
[1743372225893,0.00018329,81860.0,81859.0,0.1221954]
[1743372226086,0.00018329,81860.0,81859.0,0.1228354]
[1743372226393,0.0879,81863.0,81862.0,0.122191]
[1743372226585,0.08882,81863.0,81862.0,0.122831]
[1743372228178,0.08882,81863.0,81862.0,0.123831]
[1743372229090,0.17817385,81868.0,81867.0,0.1221835]
[1743372229283,0.21380862,81874.0,81873.0,0.1221745]
[1743372229595,0.0008,81874.0,81873.0,0.1840612]
[1743372230097,0.0004,81876.0,81875.0,0.1221716]
[1743372230298,0.0012,81876.0,81875.0,0.1229716]
[1743372230593,0.0927,81876.0,81875.0,0.1229716]
[1743372230988,0.0004,81876.0,81875.0,0.1229716]
[1743372231191,0.0024,81876.0,81875.0,0.1229716]
[1743372232381,0.0054,81876.0,81875.0,0.13572461]
[1743372235188,0.00018329,81884.0,81883.0,0.1221596]
[1743372235498,0.00018329,81884.0,81883.0,0.6305196]
[1743372236397,0.00518329,81884.0,81883.0,0.6305196]
[1743372237398,0.00918329,81884.0,81883.0,0.6305196]
[1743372238800,0.00918329,81884.0,81883.0,0.6312396]
[1743372239893,0.00918329,81884.0,81883.0,0.4837596]
[1743372240195,0.00918329,81884.0,81883.0,0.6308796]
[1743372241891,0.05123453,81884.0,81883.0,0.3616]
[1743372242095,0.1221627,81881.0,81876.0,0.3608]
[1743372242300,0.0897,81883.0,81881.0,0.1221624]
[1743372242495,0.08846,81883.0,81882.0,0.1221611]
[1743372242695,0.12975124,81883.0,81882.0,0.1228011]
[1743372243102,0.13043124,81883.0,81882.0,0.1228011]
[1743372243297,0.14014489,81883.0,81882.0,0.1228011]
[1743372243501,0.13946489,81883.0,81882.0,0.1228011]
[1743372243704,0.14014489,81883.0,81882.0,0.1228011]
[1743372243896,0.13946489,81883.0,81882.0,0.1228011]
[1743372244300,0.12675124,81883.0,81882.0,0.1228011]
[1743372244606,0.08538,81883.0,81882.0,0.1228011]
[1743372244810,0.0857,81883.0,81882.0,0.1228011]
[1743372245117,0.12775124,81883.0,81882.0,0.1228011]
[1743372245297,0.22203124,81883.0,81882.0,0.1228011]
[1743372248101,0.22103124,81883.0,81882.0,0.1228011]
[1743372248305,0.17898,81883.0,81882.0,0.1228011]
[1743372248605,0.1783,81883.0,81882.0,0.2166011]
[1743372251094,0.1783,81883.0,81882.0,0.2176011]
[1743372251506,0.1783,81883.0,81882.0,0.2166011]
[1743372251710,0.1783,81883.0,81882.0,0.2226011]
[1743372252007,0.3608,81905.0,81904.0,0.1221283]
[1743372252195,0.36148,81905.0,81904.0,0.1221283]
[1743372252405,0.36148,81905.0,81904.0,0.1228083]
[1743372252903,0.36148,81905.0,81904.0,0.13556205]
[1743372253103,0.40353124,81905.0,81904.0,0.13556205]
[1743372253510,0.40853124,81905.0,81904.0,0.13556205]
[1743372253704,0.40853124,81905.0,81904.0,0.1228083]
[1743372254007,0.36648,81905.0,81904.0,0.1228083]
[1743372254412,0.40853124,81905.0,81904.0,0.1228083]
[1743372254705,0.53708143,81905.0,81904.0,0.00068]
[1743372254911,0.41795463,81905.0,81897.0,0.0610687]
[1743372255111,0.19582339,81904.0,81903.0,0.1221293]
[1743372255307,0.18708,81904.0,81903.0,0.1227693]
[1743372255513,0.22913124,81904.0,81903.0,0.1227693]
[1743372256510,0.23893209,81904.0,81903.0,0.1227693]
[1743372257216,0.24293209,81904.0,81903.0,0.1227693]
[1743372257601,0.23313124,81904.0,81903.0,0.1227693]
[1743372257806,0.23113124,81904.0,81903.0,0.1227693]
[1743372258004,0.23313124,81904.0,81903.0,0.1227693]
[1743372259018,0.19108,81904.0,81903.0,0.1227693]
[1743372259810,0.23313124,81904.0,81903.0,0.1227693]
[1743372260013,0.23113124,81904.0,81903.0,0.1227693]
[1743372260218,0.19108,81904.0,81903.0,0.1227693]
[1743372260817,0.18908,81904.0,81903.0,0.1227693]
[1743372261017,0.19108,81904.0,81903.0,0.1227693]
[1743372261209,0.19108,81904.0,81903.0,0.5732693]
[1743372261421,0.1904,81904.0,81903.0,0.5732693]
[1743372261609,0.00018316,81913.0,81907.0,0.1221238]
[1743372261815,0.17938275,81916.0,81915.0,0.1221119]
[1743372262017,0.22223399,81916.0,81915.0,0.1229119]
[1743372262610,0.22223399,81916.0,81915.0,0.3023119]
[1743372263717,0.00058316,81924.0,81923.0,0.1221]
[1743372264020,0.00058316,81924.0,81923.0,0.63014]
[1743372264021,0.00162317,81924.0,81923.0,0.63014]
[1743372264208,0.0925,81930.0,81929.0,0.122091]
[1743372264408,0.13455124,81930.0,81929.0,0.123171]
[1743372265317,0.14397277,81930.0,81929.0,0.123171]
[1743372265519,0.14397277,81930.0,81929.0,0.13547164]
[1743372265723,0.1220737,81941.0,81940.0,0.1220746]
[1743372266023,0.12311371,81941.0,81940.0,0.00104]
[1743372266531,0.13304798,81941.0,81940.0,0.00104]
[1743372266920,0.31934798,81941.0,81940.0,0.00104]
[1743372267828,0.32434798,81941.0,81940.0,0.00104]
[1743372268028,0.32934798,81941.0,81940.0,0.00104]
[1743372268424,0.1220776,81938.0,81937.0,0.3608]
[1743372268631,0.13273187,81938.0,81937.0,0.36152]
[1743372269220,0.32373187,81938.0,81937.0,0.36152]
[1743372269420,0.32373187,81938.0,81937.0,0.00072]
[1743372269616,0.32373187,81938.0,81931.0,0.1220872]
[1743372269617,0.1220851,81933.0,81924.0,0.01237927]
[1743372269820,0.1227251,81933.0,81920.0,0.3608]
[1743372270028,0.13265937,81933.0,81920.0,0.3608]
[1743372270528,0.13265937,81933.0,81927.0,0.1220937]
[1743372270733,0.13265937,81933.0,81928.0,0.1220916]
[1743372270923,0.01057427,81933.0,81932.0,0.12226976]
[1743372271121,0.01057427,81933.0,81932.0,0.12298976]
[1743372271322,0.01557427,81933.0,81932.0,0.12298976]
[1743372271528,0.13765937,81933.0,81932.0,0.00090316]
[1743372271929,0.26471105,81933.0,81932.0,0.00018316]
[1743372272931,0.26471105,81933.0,81915.0,0.00048831]
[1743372272932,0.1221104,81916.0,81915.0,0.00048831]
[1743372273117,0.1227504,81916.0,81911.0,0.1221172]
[1743372273322,0.1221164,81912.0,81911.0,0.00072]
[1743372273527,0.1221253,81907.0,81906.0,0.1221246]
[1743372273830,0.00072,81907.0,81906.0,0.1228446]
[1743372274029,0.01065427,81907.0,81906.0,0.1228446]
[1743372274222,0.00993427,81907.0,81906.0,0.1228446]
[1743372274728,0.00993427,81910.0,81909.0,0.1221208]
[1743372274929,0.01057427,81910.0,81909.0,0.1228408]
[1743372275144,0.20907427,81910.0,81909.0,0.1228408]
[1743372275327,0.20923427,81910.0,81909.0,0.1228408]
[1743372275629,0.20923427,81910.0,81909.0,0.5845408]
[1743372275824,0.00018316,81915.0,81914.0,0.1221134]
[1743372276030,0.00018316,81915.0,81914.0,0.1228334]
[1743372277221,0.00018316,81915.0,81914.0,0.2318334]
[1743372277730,0.00992602,81915.0,81914.0,0.2318334]
[1743372278121,0.01492602,81915.0,81914.0,0.2318334]
[1743372278330,0.01992602,81915.0,81914.0,0.2318334]
[1743372279826,0.11332602,81915.0,81914.0,0.2318334]
[1743372281129,0.11348133,81915.0,81914.0,0.2318334]
[1743372283030,0.02008133,81915.0,81914.0,0.2318334]
[1743372283224,0.01996759,81915.0,81914.0,0.2318334]
[1743372284338,0.01496759,81915.0,81914.0,0.2338334]
[1743372284726,0.00996759,81915.0,81914.0,0.2338334]
[1743372284927,0.00996759,81915.0,81914.0,0.2368334]
[1743372285438,0.1002,81923.0,81922.0,0.1221015]
[1743372285634,0.10092,81923.0,81922.0,0.6272215]
[1743372286033,0.0004,81940.0,81939.0,0.1220761]
[1743372286233,0.00112,81940.0,81939.0,0.49578789]
[1743372286436,0.00112,81940.0,81939.0,0.4835961]
[1743372287230,0.00612,81940.0,81939.0,0.4835961]
[1743372287635,0.01012,81940.0,81939.0,0.4835961]
[1743372288040,0.00612,81940.0,81939.0,0.4835961]
[1743372288239,0.02001084,81940.0,81939.0,0.4835961]
[1743372288736,0.02001084,81940.0,81939.0,0.00072]
[1743372288737,0.14208544,81940.0,81939.0,0.00072]
[1743372289132,0.13708544,81940.0,81939.0,0.00072]
[1743372289336,0.14208544,81940.0,81939.0,0.00072]
[1743372289543,0.02001084,81940.0,81939.0,0.1227961]
[1743372290045,0.14108544,81940.0,81939.0,0.1227961]
[1743372290928,0.14108544,81940.0,81939.0,0.00072]
[1743372291332,0.1220851,81933.0,81932.0,0.4828863]
[1743372291531,0.1220866,81932.0,81922.0,0.4218506]
[1743372291747,0.42145744,81932.0,81919.0,0.0610527]
[1743372292048,0.1221104,81916.0,81913.0,0.3608]
[1743372292251,0.1221013,81923.0,81922.0,0.1221]
[1743372292639,0.13283214,81923.0,81922.0,0.12294]
[1743372293646,0.13383214,81923.0,81922.0,0.12294]
[1743372293844,0.01173084,81923.0,81922.0,0.12294]
[1743372294248,0.01189084,81923.0,81922.0,0.12294]
[1743372295341,0.01389084,81923.0,81922.0,0.12294]
[1743372295741,0.01561084,81923.0,81922.0,0.12294]
[1743372295951,0.01489084,81923.0,81922.0,0.12294]
[1743372296244,0.01565084,81923.0,81922.0,0.12294]
[1743372297149,0.01489084,81923.0,81922.0,0.12294]
[1743372297342,0.02451555,81923.0,81922.0,0.12294]
[1743372297544,0.02523555,81923.0,81922.0,0.12294]
[1743372297742,0.14733555,81923.0,81922.0,0.12294]
[1743372297941,0.02523555,81923.0,81922.0,0.12294]
[1743372298145,0.14733555,81923.0,81922.0,0.12294]
[1743372298940,0.02523555,81923.0,81922.0,0.12294]
[1743372299547,0.01534471,81923.0,81922.0,0.12294]
[1743372299753,0.13744471,81923.0,81922.0,0.12294]
[1743372299952,0.25034471,81923.0,81922.0,0.12294]
[1743372300356,0.12824471,81923.0,81922.0,0.12294]
[1743372300556,0.11862,81923.0,81922.0,0.12294]
[1743372300749,0.24072,81923.0,81922.0,0.00084]
[1743372300942,0.73328133,81923.0,81922.0,0.00084]
[1743372301148,0.1221119,81915.0,81914.0,0.12229576]
[1743372301348,0.1221119,81915.0,81914.0,0.00090316]
[1743372301652,0.15864535,81915.0,81914.0,0.00090316]
[1743372301845,0.03653345,81915.0,81914.0,0.12301656]
[1743372302047,0.15788535,81915.0,81914.0,0.00090316]
[1743372302248,0.27258535,81915.0,81914.0,0.00090316]
[1743372302447,0.27258483,81915.0,81914.0,0.00090316]
[1743372302755,0.27338483,81915.0,81914.0,0.12301656]
[1743372303563,0.27338483,81915.0,81914.0,0.00090316]
[1743372303761,0.63418483,81915.0,81914.0,0.00090316]
[1743372304063,0.77267397,81915.0,81914.0,0.00018316]
[1743372304265,0.91375397,81915.0,81914.0,0.00018316]
[1743372304452,0.89770586,81915.0,81914.0,0.00018316]
[1743372304954,0.75662586,81915.0,81914.0,0.00018316]
[1743372305258,0.25733672,81915.0,81914.0,0.00018316]
[1743372305459,0.25733672,81915.0,81914.0,0.00094316]
[1743372305659,0.25733672,81915.0,81914.0,0.00018316]
[1743372305851,0.25733672,81915.0,81914.0,0.00094316]
[1743372306251,0.25733672,81915.0,81914.0,0.00018316]
[1743372306452,0.25733672,81915.0,81914.0,0.00098316]
[1743372307861,0.1221134,81914.0,81913.0,0.09807809]
[1743372308061,0.13290347,81914.0,81913.0,0.09871809]
[1743372308552,0.14889509,81914.0,81913.0,0.00064]
[1743372308754,0.15858984,81914.0,81913.0,0.00064]
[1743372309057,0.1221238,81907.0,81906.0,0.4829242]
[1743372309355,0.14890549,81907.0,81906.0,0.4836442]
[1743372309560,0.02678169,81907.0,81906.0,0.4836442]
[1743372309957,0.02602169,81907.0,81906.0,0.4836442]
[1743372310260,0.03571644,81907.0,81906.0,0.4836442]
[1743372310450,0.15784024,81907.0,81906.0,0.4836442]
[1743372310649,0.15860024,81907.0,81906.0,0.4836442]
[1743372311454,0.15860024,81907.0,81906.0,0.4856442]
[1743372311652,0.16197644,81907.0,81906.0,0.4856442]
[1743372311857,0.16197644,81907.0,81906.0,0.7338442]
[1743372312053,0.4117,81921.0,81918.0,0.1221074]
[1743372312254,0.31851539,81919.0,81918.0,0.3608]
[1743372312560,0.31851539,81919.0,81918.0,0.36152]
[1743372312751,0.19640949,81919.0,81918.0,0.36152]
[1743372312952,0.19640949,81919.0,81918.0,0.4836274]
[1743372313350,0.31820949,81919.0,81918.0,0.4836274]
[1743372313553,0.32120949,81919.0,81918.0,0.4836274]
[1743372313757,0.32120949,81919.0,81918.0,0.6043274]
[1743372313960,0.19940949,81919.0,81918.0,0.6043274]
[1743372314160,0.02008046,81919.0,81918.0,0.6043274]
[1743372314360,0.00372,81919.0,81918.0,0.6043274]
[1743372314660,0.01986094,81919.0,81918.0,0.7271274]
[1743372314865,0.14166094,81919.0,81918.0,0.7271274]
[1743372315062,0.26376684,81919.0,81918.0,0.7271274]
[1743372315360,0.38576684,81919.0,81918.0,0.7271274]
[1743372315765,0.26366094,81919.0,81918.0,0.7271274]
[1743372316354,0.01986094,81919.0,81918.0,0.7271274]
[1743372316556,0.01914094,81919.0,81918.0,0.7271274]
[1743372316758,0.01986094,81919.0,81918.0,0.7271274]
[1743372318355,0.01914094,81919.0,81918.0,0.7271274]
[1743372320960,0.01986094,81919.0,81918.0,0.7271274]
[1743372322259,0.0373939,81919.0,81918.0,0.7271274]
[1743372322570,0.03892253,81919.0,81918.0,0.7271274]
[1743372322777,0.02138957,81919.0,81918.0,0.7271274]
[1743372324168,0.01422781,81919.0,81918.0,0.7271274]
[1743372324469,0.03189738,81919.0,81918.0,0.7271274]
[1743372324873,0.04244131,81919.0,81918.0,0.7271274]
[1743372326462,0.21521057,81935.0,81918.0,0.7271274]
[1743372326463,0.21521057,81935.0,81934.0,0.1220836]
[1743372326659,0.21617058,81935.0,81934.0,0.9842436]
[1743372326967,0.23196738,81935.0,81934.0,0.9842436]
[1743372327469,0.23288738,81935.0,81934.0,1.1094436]
[1743372327701,0.23788738,81935.0,81934.0,1.0900236]
[1743372327878,0.34321267,81935.0,81934.0,0.8447236]
[1743372328171,0.22113057,81935.0,81934.0,0.8447236]
[1743372328565,0.22613057,81935.0,81934.0,0.8447236]
[1743372329477,0.24321364,81935.0,81934.0,0.85701994]
[1743372330877,0.01708307,81935.0,81934.0,0.85701994]
[1743372331071,0.0004,81940.0,81939.0,0.1220761]
[1743372331276,0.0004,81940.0,81939.0,0.1232761]
[1743372331782,0.00164001,81940.0,81939.0,0.1232761]
[1743372331979,0.00164001,81940.0,81939.0,0.3641761]
[1743372332187,0.0004,81940.0,81939.0,0.3641761]
[1743372332480,0.0054,81940.0,81939.0,0.3641761]
[1743372333479,0.0094,81940.0,81939.0,0.3641761]
[1743372334070,0.01060001,81940.0,81939.0,0.5033761]
[1743372334272,0.0094,81940.0,81939.0,0.5033761]
[1743372336780,0.02645489,81940.0,81939.0,0.5033761]
[1743372336975,0.15735489,81940.0,81939.0,0.5033761]
[1743372337781,0.10762506,81944.0,81943.0,0.1220702]
[1743372337982,0.12460319,81944.0,81943.0,0.4841102]
[1743372338284,0.10762506,81944.0,81943.0,0.7315102]
[1743372338469,0.21521057,81959.0,81955.0,0.1220523]
[1743372338668,0.2482,81968.0,81967.0,0.1220344]